fUSD/lending_fUSD_20240826
["ID","MTS","AMOUNT","RATE_DAILY","PERIOD"]
[336025531,1724670646147,-500.0,0.00010958,2]
[336025532,1724670646156,-656.09,0.00010958,2]
[336025533,1724670646166,-500.0,0.00010958,2]
[336025534,1724670646176,-500.0,0.00010958,2]
[336025535,1724670646186,-500.0,0.00010958,2]
[336025536,1724670646196,-500.0,0.00010958,2]
[336025537,1724670646208,-500.0,0.00010958,2]
[336025538,1724670646219,-500.0,0.00010958,2]
[336025539,1724670646228,-500.0,0.00010958,2]
[336025540,1724670646238,-500.0,0.00010958,2]
[336025541,1724670646247,-500.0,0.00010958,2]
[336025542,1724670646257,-500.0,0.00010958,2]
[336025543,1724670646267,-8347.82,0.00010958,2]
[336025544,1724670646277,-500.0,0.00010958,2]
[336025545,1724670646286,-589.17,0.00010958,2]
[336025546,1724670646297,-589.17,0.00010958,2]
[336025547,1724670646306,-500.0,0.00010958,2]
[336025548,1724670646315,-500.0,0.00010958,2]
[336025549,1724670646326,-187.89,0.00010959,2]
[336025550,1724670646335,-250.0,0.00010959,2]
[336025551,1724670646345,-150.0,0.00010959,2]
[336025552,1724670646356,-1500.0,0.00010959,2]
[336025553,1724670646366,-603.7,0.00010959,2]
[336025554,1724670646375,-175.79,0.00010959,2]
[336025555,1724670646385,-887.56292452,0.00010964,2]
[336025556,1724670646395,-311.48939823,0.00010964,2]
[336025557,1724670646405,-392.61063228,0.00010964,2]
[336025558,1724670646415,-150.0,0.00010971,2]
[336025559,1724670646425,-887.56292452,0.00010975,2]
[336025560,1724670646435,-311.48939823,0.00010975,2]
[336025561,1724670646445,-392.61063228,0.00010975,2]
[336025562,1724670646455,-155.0,0.00010979,2]
[336025563,1724670646466,-887.56292452,0.00010986,2]
[336025564,1724670646476,-311.48939823,0.00010986,2]
[336025565,1724670646485,-244.63844202,0.00010986,2]
[336025566,1724670646495,-169.78411419,0.00010986,2]
[336025567,1724670646505,-392.61063228,0.00010986,2]
[336025568,1724670646515,-273.08118998,0.00010986,2]
[336025569,1724670646525,-192.38897556,0.00010986,2]
[336025570,1724670646534,-191.48347557,0.00010986,2]
[336025571,1724670646543,-254.23112382,0.00010986,2]
[336025572,1724670646553,-247.30140151,0.00010986,2]
[336025573,1724670646562,-162.27921669,0.00010986,2]
[336025574,1724670646572,-162.58491922,0.00010986,2]
[336025575,1724670646582,-176.30400353,0.00010986,2]
[336025576,1724670646592,-242.28254293,0.00010986,2]
[336025577,1724670646601,-738.21,0.00010987,2]
[336025578,1724670646611,-500.0,0.00010987,2]
[336025579,1724670646621,-241.37013807,0.00010987,2]
[336025581,1724670646632,-500.0,0.00010987,2]
[336025582,1724670646642,-522.3,0.00010987,2]
[336025583,1724670646651,-392.08711935,0.00010987,2]
[336025584,1724670646661,-500.0,0.00010987,2]
[336025585,1724670646670,-500.0,0.00010987,2]
[336025586,1724670646679,-500.0,0.00010987,2]
[336025587,1724670646689,-500.0,0.00010987,2]
[336025588,1724670646699,-500.0,0.00010987,2]
[336025589,1724670646716,-500.0,0.00010987,2]
[336025590,1724670646732,-500.0,0.00010987,2]
[336025591,1724670646741,-500.0,0.00010987,2]
[336025592,1724670646753,-500.0,0.00010987,2]
[336025593,1724670646762,-435.03923737,0.00010987,2]
[336025594,1724670646772,-500.0,0.00010987,2]
[336025595,1724670646781,-500.0,0.00010987,2]
[336025596,1724670646793,-500.0,0.00010987,2]
[336025597,1724670646804,-500.0,0.00010987,2]
[336025598,1724670646813,-500.0,0.00010987,2]
[336025599,1724670646823,-3377.56,0.00010987,2]
[336025600,1724670646834,-500.0,0.00010987,2]
[336025601,1724670646843,-1330.19,0.00010987,2]
[336025602,1724670646852,-500.0,0.00010987,2]
[336025603,1724670646862,-500.0,0.00010987,2]
[336025604,1724670646872,-500.0,0.00010987,2]
[336025605,1724670646882,-898.14,0.00010987,2]
[336025606,1724670646892,-500.0,0.00010987,2]
[336025607,1724670646902,-500.0,0.00010987,2]
[336025608,1724670646911,-500.0,0.00010989,2]
[336025609,1724670646920,-500.0,0.00010989,2]
[336025610,1724670646930,-1077.75,0.00010989,2]
[336025611,1724670646940,-500.0,0.00010989,2]
[336025612,1724670646949,-500.0,0.00010989,2]
[336025613,1724670646959,-500.0,0.00010989,2]
[336025614,1724670646978,-500.0,0.00010989,2]
[336025615,1724670646988,-500.0,0.00010989,2]
[336025616,1724670646997,-500.0,0.00010989,2]
[336025617,1724670647007,-500.0,0.00010989,2]
[336025618,1724670647016,-500.0,0.00010989,2]
[336025619,1724670647026,-500.0,0.00010989,2]
[336025620,1724670647036,-500.0,0.00010989,2]
[336025621,1724670647045,-573.21,0.00010989,2]
[336025622,1724670647054,-500.0,0.00010989,2]
[336025623,1724670647064,-500.0,0.00010989,2]
[336025624,1724670647074,-511.55760076,0.00010989,2]
[336025625,1724670647083,-500.0,0.00010989,2]
[336025626,1724670647093,-500.0,0.00010989,2]
[336025627,1724670647102,-500.0,0.00010989,2]
[336025628,1724670647111,-292.16764285,0.00010989,2]
[336025629,1724670647121,-500.0,0.00010989,2]
[336025630,1724670647131,-500.0,0.00010989,2]
[336025631,1724670647140,-500.0,0.00010989,2]
[336025632,1724670647151,-586.28,0.00010989,2]
[336025633,1724670647161,-519.36833908,0.00010989,2]
[336025634,1724670647170,-500.0,0.00010989,2]
[336025635,1724670647180,-523.55987675,0.00010989,2]
[336025636,1724670647189,-500.0,0.00010989,2]
[336025637,1724670647199,-511.14082694,0.00010989,2]
[336025638,1724670647208,-500.0,0.00010989,2]
[336025639,1724670647226,-500.0,0.00010989,2]
[336025640,1724670647236,-500.0,0.00010989,2]
[336025641,1724670647246,-500.0,0.00010989,2]
[336025642,1724670647255,-500.0,0.00010989,2]
[336025643,1724670647265,-500.0,0.00010989,2]
[336025644,1724670647274,-565.89,0.00010989,2]
[336025645,1724670647284,-500.0,0.00010989,2]
[336025646,1724670647294,-500.0,0.00010989,2]
[336025647,1724670647303,-504.47162107,0.00010989,2]
[336025648,1724670647313,-500.0,0.00010989,2]
[336025649,1724670647323,-500.0,0.00010989,2]
[336025650,1724670647332,-500.0,0.00010989,2]
[336025651,1724670647342,-500.0,0.00010989,2]
[336025652,1724670647352,-500.0,0.00010989,2]
[336025653,1724670647362,-476.45635253,0.00010989,2]
[336025654,1724670647371,-315.37944439,0.00010989,2]
[336025655,1724670647382,-500.0,0.00010989,2]
[336025656,1724670647391,-500.0,0.00010989,2]
[336025657,1724670647401,-505.55547253,0.00010989,2]
[336025658,1724670647411,-500.0,0.00010989,2]
[336025659,1724670647420,-1037.30011846,0.00010989,2]
[336025660,1724670647430,-500.0,0.00010989,2]
[336025661,1724670647440,-500.0,0.00010989,2]
[336025662,1724670647449,-500.0,0.00010989,2]
[336025663,1724670647460,-500.0,0.00010993,2]
[336025664,1724670647470,-413.4,0.00010993,2]
[336025665,1724670647480,-500.0,0.00010993,2]
[336025666,1724670647489,-500.0,0.00010993,2]
[336025667,1724670647499,-342.93,0.00010993,2]
[336025668,1724670647509,-500.0,0.00010993,2]
[336025669,1724670647519,-500.0,0.00010993,2]
[336025670,1724670647528,-500.0,0.00010993,2]
[336025671,1724670647538,-500.0,0.00010993,2]
[336025672,1724670647547,-500.0,0.00010993,2]
[336025673,1724670647558,-500.0,0.00010993,2]
[336025674,1724670647567,-500.0,0.00010993,2]
[336025675,1724670647577,-500.0,0.00010993,2]
[336025676,1724670647587,-500.0,0.00010993,2]
[336025677,1724670647597,-500.0,0.00010993,2]
[336025678,1724670647607,-249.92879856,0.00010993,2]
[336025679,1724670647617,-500.0,0.00010993,2]
[336025680,1724670647627,-665.14,0.00010993,2]
[336025681,1724670647636,-500.0,0.00010993,2]
[336025682,1724670647646,-500.0,0.00010993,2]
[336025683,1724670647694,-500.0,0.00010993,2]
[336025684,1724670647704,-340.46,0.00010993,2]
[336025685,1724670647717,-500.0,0.00010993,2]
[336025686,1724670647730,-500.0,0.00010994,2]
[336025687,1724670647740,-500.0,0.00010994,2]
[336025688,1724670647750,-828.85,0.00010994,2]
[336025689,1724670647759,-500.0,0.00010994,2]
[336025690,1724670647769,-1114.08,0.00010994,2]
[336025691,1724670647778,-500.0,0.00010994,2]
[336025692,1724670647788,-500.0,0.00010994,2]
[336025693,1724670647799,-500.0,0.00010994,2]
[336025694,1724670647809,-500.0,0.00010994,2]
[336025695,1724670647819,-500.0,0.00010994,2]
[336025696,1724670647828,-1579.85,0.00010994,2]
[336025697,1724670647838,-500.0,0.00010994,2]
[336025698,1724670647848,-500.0,0.00010994,2]
[336025699,1724670647858,-500.0,0.00010994,2]
[336025700,1724670647868,-2440.71,0.00010994,2]
[336025701,1724670647878,-500.0,0.00010994,2]
[336025702,1724670647889,-500.0,0.00010994,2]
[336025703,1724670647899,-500.0,0.00010994,2]
[336025704,1724670647909,-830.07,0.00010994,2]
[336025705,1724670647918,-500.0,0.00010994,2]
[336025706,1724670647928,-500.0,0.00010994,2]
[336025707,1724670647938,-352.67202082,0.00010994,2]
[336025708,1724670647948,-1435.7,0.00010994,2]
[336025709,1724670647958,-500.0,0.00010994,2]
[336025710,1724670647969,-536.23046055,0.00010994,2]
[336025711,1724670647978,-500.0,0.00010994,2]
[336025712,1724670647987,-517.70970195,0.00010994,2]
[336025713,1724670647997,-500.0,0.00010994,2]
[336025714,1724670648006,-500.0,0.00010994,2]
[336025715,1724670648016,-500.0,0.00010994,2]
[336025716,1724670648025,-514.81239864,0.00010994,2]
[336025717,1724670648035,-500.0,0.00010994,2]
[336025718,1724670648044,-500.0,0.00010994,2]
[336025719,1724670648054,-500.0,0.00010994,2]
[336025720,1724670648063,-500.0,0.00010994,2]
[336025721,1724670648073,-371.15113216,0.00010994,2]
[336025722,1724670648083,-500.0,0.00010994,2]
[336025723,1724670648093,-500.0,0.00010994,2]
[336025724,1724670648102,-500.0,0.00010994,2]
[336025725,1724670648112,-500.0,0.00010994,2]
[336025726,1724670648122,-500.0,0.00010994,2]
[336025727,1724670648132,-500.0,0.00010994,2]
[336025728,1724670648141,-500.0,0.00010994,2]
[336025729,1724670648151,-500.0,0.00010994,2]
[336025730,1724670648161,-500.0,0.00010994,2]
[336025731,1724670648171,-500.0,0.00010994,2]
[336025732,1724670648181,-500.0,0.00010994,2]
[336025733,1724670648191,-500.0,0.00010994,2]
[336025734,1724670648201,-500.0,0.00010994,2]
[336025735,1724670648210,-500.0,0.00010994,2]
[336025736,1724670648221,-500.0,0.00010994,2]
[336025737,1724670648231,-500.0,0.00010994,2]
[336025738,1724670648240,-500.0,0.00010994,2]
[336025739,1724670648250,-500.0,0.00010994,2]
[336025740,1724670648259,-500.0,0.00010994,2]
[336025741,1724670648269,-500.0,0.00010994,2]
[336025742,1724670648278,-500.0,0.00010994,2]
[336025743,1724670648288,-500.0,0.00010994,2]
[336025744,1724670648298,-500.0,0.00010994,2]
[336025745,1724670648308,-511.06,0.00010994,2]
[336025746,1724670648316,-500.0,0.00010994,2]
[336025747,1724670648327,-505.17149718,0.00010994,2]
[336025748,1724670648336,-500.0,0.00010994,2]
[336025749,1724670648346,-500.0,0.00010994,2]
[336025750,1724670648356,-500.0,0.00010994,2]
[336025751,1724670648365,-500.0,0.00010994,2]
[336025752,1724670648375,-494.8811793,0.00010994,2]
[336025753,1724670648384,-500.0,0.00010994,2]
[336025754,1724670648394,-500.0,0.00010994,2]
[336025755,1724670648403,-500.0,0.00010994,2]
[336025756,1724670648414,-510.87243517,0.00010994,2]
[336025757,1724670648425,-500.0,0.00010994,2]
[336025758,1724670648435,-500.0,0.00010994,2]
[336025759,1724670648445,-500.0,0.00010994,2]
[336025760,1724670648455,-506.78504827,0.00010994,2]
[336025761,1724670648464,-521.05112779,0.00010994,2]
[336025762,1724670648474,-500.0,0.00010994,2]
[336025763,1724670648484,-500.0,0.00010994,2]
[336025764,1724670648494,-500.0,0.00010994,2]
[336025765,1724670648504,-500.0,0.00010994,2]
[336025766,1724670648513,-500.0,0.00010994,2]
[336025767,1724670648523,-500.0,0.00010994,2]
[336025768,1724670648533,-500.0,0.00010994,2]
[336025769,1724670648543,-500.0,0.00010994,2]
[336025770,1724670648552,-500.0,0.00010994,2]
[336025771,1724670648562,-500.0,0.00010994,2]
[336025772,1724670648571,-500.0,0.00010994,2]
[336025773,1724670648581,-500.0,0.00010994,2]
[336025774,1724670648591,-500.0,0.00010994,2]
[336025775,1724670648600,-500.0,0.00010994,2]
[336025776,1724670648610,-500.0,0.00010994,2]
[336025777,1724670648619,-500.0,0.00010994,2]
[336025778,1724670648629,-500.0,0.00010994,2]
[336025779,1724670648639,-500.0,0.00010994,2]
[336025780,1724670648649,-157.92126589,0.00010994,2]
[336025781,1724670648660,-1891.67,0.00010994,2]
[336025782,1724670648669,-500.0,0.00010994,2]
[336025783,1724670648679,-500.0,0.00010994,2]
[336025784,1724670648688,-423.461878,0.00010994,2]
[336025785,1724670648697,-500.0,0.00010994,2]
[336025786,1724670648707,-882.02,0.00010994,2]
[336025787,1724670648722,-1871.11,0.00010994,2]
[336025788,1724670648732,-1853.87,0.00010994,2]
[336025789,1724670648741,-500.0,0.00010994,2]
[336025790,1724670648751,-500.0,0.00010994,2]
[336025791,1724670648762,-500.0,0.00010994,2]
[336025792,1724670648771,-500.0,0.00010994,2]
[336025793,1724670648781,-1422.43,0.00010994,2]
[336025794,1724670648790,-508.72196139,0.00010994,2]
[336025795,1724670648801,-500.0,0.00010994,2]
[336025796,1724670648810,-595.70320635,0.00010994,2]
[336025797,1724670648819,-464.10684051,0.00010994,2]
[336025798,1724670648829,-1067.73,0.00010994,2]
[336025799,1724670648838,-1249.49,0.00010994,2]
[336025800,1724670648847,-500.0,0.00010994,2]
[336025801,1724670648856,-500.0,0.00010994,2]
[336025802,1724670648866,-500.0,0.00010994,2]
[336025803,1724670648875,-1213.51,0.00010994,2]
[336025804,1724670648884,-506.98448783,0.00010994,2]
[336025805,1724670648895,-500.0,0.00010994,2]
[336025806,1724670648904,-500.0,0.00010994,2]
[336025807,1724670648914,-296.76131039,0.00010994,2]
[336025808,1724670648923,-500.0,0.00010994,2]
[336025809,1724670648933,-500.0,0.00010994,2]
[336025810,1724670648942,-1182.51,0.00010994,2]
[336025811,1724670648952,-512.89365887,0.00010994,2]
[336025812,1724670648961,-500.0,0.00010994,2]
[336025813,1724670648971,-500.0,0.00010994,2]
[336025814,1724670648981,-523.02096113,0.00010994,2]
[336025815,1724670648991,-1361.49,0.00010994,2]
[336025816,1724670649000,-500.0,0.00010994,2]
[336025817,1724670649010,-500.0,0.00010994,2]
[336025818,1724670649019,-507.81804094,0.00010994,2]
[336025819,1724670649029,-500.0,0.00010994,2]
[336025820,1724670649038,-590.33528691,0.00010994,2]
[336025821,1724670649048,-1705.47,0.00010994,2]
[336025822,1724670649057,-500.0,0.00010994,2]
[336025823,1724670649067,-500.0,0.00010994,2]
[336025824,1724670649076,-505.74975304,0.00010994,2]
[336025825,1724670649086,-505.75800976,0.00010994,2]
[336025826,1724670649096,-207.06,0.00010994,2]
[336025827,1724670649106,-500.0,0.00010994,2]
[336025828,1724670649115,-507.88399192,0.00010994,2]
[336025829,1724670649125,-500.0,0.00010994,2]
[336025830,1724670649135,-500.0,0.00010994,2]
[336025831,1724670649145,-656.09,0.00010994,2]
[336025832,1724670649154,-334.55646062,0.00010994,2]
[336025834,1724670649163,-500.0,0.00010994,2]
[336025836,1724670649173,-503.02976416,0.00010994,2]
[336025838,1724670649183,-502.24718702,0.00010994,2]
[336025840,1724670649193,-8347.82,0.00010994,2]
[336025842,1724670649202,-500.0,0.00010994,2]
[336025844,1724670649211,-512.58557484,0.00010994,2]
[336025846,1724670649222,-738.21,0.00010995,2]
[336025848,1724670649232,-500.0,0.00010995,2]
[336025850,1724670649242,-500.0,0.00010995,2]
[336025852,1724670649252,-522.3,0.00010995,2]
[336025854,1724670649262,-500.0,0.00010995,2]
[336025856,1724670649272,-500.0,0.00010995,2]
[336025857,1724670649281,-500.0,0.00010995,2]
[336025859,1724670649290,-500.0,0.00010995,2]
[336025861,1724670649299,-500.0,0.00010995,2]
[336025863,1724670649309,-500.0,0.00010995,2]
[336025866,1724670649321,-500.0,0.00010995,2]
[336025868,1724670649331,-500.0,0.00010995,2]
[336025870,1724670649340,-500.0,0.00010995,2]
[336025872,1724670649349,-500.0,0.00010995,2]
[336025873,1724670649359,-500.0,0.00010995,2]
[336025874,1724670649368,-520.47039308,0.00010995,2]
[336025875,1724670649378,-500.0,0.00010995,2]
[336025876,1724670649387,-500.0,0.00010995,2]
[336025877,1724670649396,-3377.56,0.00010995,2]
[336025878,1724670649406,-500.0,0.00010995,2]
[336025879,1724670649416,-1330.19,0.00010995,2]
[336025880,1724670649425,-500.0,0.00010995,2]
[336025881,1724670649435,-500.0,0.00010995,2]
[336025882,1724670649445,-500.0,0.00010995,2]
[336025883,1724670649454,-898.14,0.00010995,2]
[336025884,1724670649464,-500.0,0.00010995,2]
[336025885,1724670649473,-500.0,0.00010995,2]
[336025886,1724670649483,-500.0,0.00010995,2]
[336025887,1724670649492,-541.0441335,0.00010995,2]
[336025888,1724670649502,-956.72,0.00010995,2]
[336025889,1724670649511,-500.0,0.00010995,2]
[336025890,1724670649521,-500.0,0.00010995,2]
[336025891,1724670649531,-500.0,0.00010995,2]
[336025892,1724670649541,-589.17,0.00010995,2]
[336025893,1724670649550,-500.0,0.00010996,2]
[336025894,1724670649560,-500.0,0.00010996,2]
[336025895,1724670649570,-1077.75,0.00010996,2]
[336025896,1724670649580,-500.0,0.00010996,2]
[336025897,1724670649589,-500.0,0.00010996,2]
[336025898,1724670649599,-500.0,0.00010996,2]
[336025899,1724670649608,-828.85,0.00010996,2]
[336025900,1724670649618,-500.0,0.00010996,2]
[336025901,1724670649627,-1114.08,0.00010996,2]
[336025902,1724670649637,-494.66918803,0.00010996,2]
[336025903,1724670649646,-500.0,0.00010996,2]
[336025904,1724670649655,-500.0,0.00010996,2]
[336025905,1724670649664,-500.0,0.00010996,2]
[336025906,1724670649673,-500.0,0.00010996,2]
[336025907,1724670649682,-500.0,0.00010996,2]
[336025908,1724670649691,-738.21,0.00010996,2]
[336025909,1724670649701,-1579.85,0.00010996,2]
[336025910,1724670649710,-738.21,0.00010996,2]
[336025911,1724670649721,-738.21,0.00010996,2]
[336025912,1724670649732,-738.21,0.00010996,2]
[336025913,1724670649741,-738.21,0.00010996,2]
[336025914,1724670649750,-738.21,0.00010996,2]
[336025915,1724670649759,-738.21,0.00010996,2]
[336025916,1724670649770,-500.0,0.00010996,2]
[336025917,1724670649779,-500.0,0.00010996,2]
[336025918,1724670649788,-500.0,0.00010996,2]
[336025919,1724670649798,-361.00121014,0.00010996,2]
[336025920,1724670649810,-500.0,0.00010996,2]
[336025921,1724670649820,-2440.71,0.00010996,2]
[336025922,1724670649829,-500.0,0.00010996,2]
[336025923,1724670649839,-500.0,0.00010996,2]
[336025924,1724670649848,-500.0,0.00010996,2]
[336025925,1724670649857,-500.0,0.00010996,2]
[336025926,1724670649867,-500.0,0.00010996,2]
[336025927,1724670649876,-500.0,0.00010996,2]
[336025928,1724670649885,-586.67311929,0.00010996,2]
[336025929,1724670649895,-500.0,0.00010996,2]
[336025930,1724670649906,-830.07,0.00010996,2]
[336025931,1724670649916,-500.0,0.00010996,2]
[336025932,1724670649927,-500.0,0.00010996,2]
[336025933,1724670649937,-500.0,0.00010996,2]
[336025934,1724670649946,-522.3,0.00010996,2]
[336025935,1724670649955,-522.3,0.00010996,2]
[336025936,1724670649965,-522.3,0.00010996,2]
[336025937,1724670649982,-522.3,0.00010996,2]
[336025938,1724670649995,-522.3,0.00010996,2]
[336025939,1724670650004,-522.3,0.00010996,2]
[336025940,1724670650013,-522.3,0.00010996,2]
[336025941,1724670650022,-500.0,0.00010996,2]
[336025942,1724670650031,-500.0,0.00010996,2]
[336025943,1724670650040,-511.78808913,0.00010996,2]
[336025944,1724670650050,-1435.7,0.00010996,2]
[336025945,1724670650059,-523.8615503,0.00010996,2]
[336025946,1724670650069,-500.0,0.00010996,2]
[336025947,1724670650079,-500.0,0.00010996,2]
[336025948,1724670650088,-500.0,0.00010996,2]
[336025949,1724670650098,-500.0,0.00010996,2]
[336025950,1724670650107,-500.0,0.00010996,2]
[336025951,1724670650116,-500.0,0.00010996,2]
[336025952,1724670650126,-500.0,0.00010996,2]
[336025953,1724670650135,-500.0,0.00010996,2]
[336025954,1724670650144,-573.21,0.00010996,2]
[336025955,1724670650153,-500.0,0.00010996,2]
[336025956,1724670650163,-500.0,0.00010996,2]
[336025957,1724670650172,-500.0,0.00010996,2]
[336025958,1724670650182,-500.0,0.00010996,2]
[336025959,1724670650192,-500.0,0.00010996,2]
[336025960,1724670650201,-500.0,0.00010996,2]
[336025961,1724670650211,-500.0,0.00010996,2]
[336025962,1724670650229,-511.54996748,0.00010996,2]
[336025963,1724670650238,-500.0,0.00010996,2]
[336025964,1724670650247,-500.0,0.00010996,2]
[336025965,1724670650257,-500.0,0.00010996,2]
[336025966,1724670650267,-500.0,0.00010996,2]
[336025967,1724670650277,-500.0,0.00010996,2]
[336025968,1724670650287,-500.0,0.00010996,2]
[336025969,1724670650297,-500.0,0.00010996,2]
[336025970,1724670650306,-500.0,0.00010996,2]
[336025971,1724670650316,-500.0,0.00010996,2]
[336025972,1724670650325,-500.0,0.00010996,2]
[336025973,1724670650334,-500.0,0.00010996,2]
[336025974,1724670650343,-500.0,0.00010996,2]
[336025975,1724670650353,-500.0,0.00010996,2]
[336025976,1724670650363,-500.0,0.00010996,2]
[336025977,1724670650373,-500.0,0.00010996,2]
[336025978,1724670650382,-500.0,0.00010996,2]
[336025979,1724670650392,-500.0,0.00010996,2]
[336025980,1724670650401,-500.0,0.00010996,2]
[336025981,1724670650411,-500.0,0.00010996,2]
[336025982,1724670650421,-500.0,0.00010996,2]
[336025983,1724670650431,-500.0,0.00010996,2]
[336025984,1724670650440,-465.13484577,0.00010996,2]
[336025985,1724670650450,-500.0,0.00010996,2]
[336025986,1724670650459,-500.0,0.00010996,2]
[336025987,1724670650471,-500.0,0.00010996,2]
[336025988,1724670650480,-265.59137601,0.00010996,2]
[336025989,1724670650489,-500.0,0.00010996,2]
[336025990,1724670650499,-500.0,0.00010996,2]
[336025991,1724670650509,-500.0,0.00010996,2]
[336025992,1724670650518,-500.0,0.00010996,2]
[336025993,1724670650527,-500.0,0.00010996,2]
[336025994,1724670650537,-500.0,0.00010996,2]
[336025995,1724670650546,-434.31982955,0.00010996,2]
[336025996,1724670650556,-500.0,0.00010996,2]
[336025997,1724670650565,-500.0,0.00010996,2]
[336025998,1724670650575,-500.0,0.00010996,2]
[336025999,1724670650584,-171.6,0.00010996,2]
[336026000,1724670650593,-500.0,0.00010996,2]
[336026001,1724670650602,-500.0,0.00010996,2]
[336026002,1724670650612,-231.04,0.00010996,2]
[336026003,1724670650621,-500.0,0.00010996,2]
[336026004,1724670650630,-500.0,0.00010996,2]
[336026005,1724670650640,-500.0,0.00010996,2]
[336026006,1724670650650,-500.0,0.00010996,2]
[336026007,1724670650659,-500.0,0.00010996,2]
[336026008,1724670650668,-500.0,0.00010996,2]
[336026009,1724670650678,-621.4,0.00010996,2]
[336026010,1724670650688,-500.0,0.00010996,2]
[336026011,1724670650697,-500.0,0.00010996,2]
[336026012,1724670650707,-500.0,0.00010996,2]
[336026013,1724670650718,-500.0,0.00010996,2]
[336026014,1724670650730,-500.0,0.00010996,2]
[336026015,1724670650739,-500.0,0.00010996,2]
[336026016,1724670650749,-500.0,0.00010996,2]
[336026017,1724670650758,-500.0,0.00010996,2]
[336026018,1724670650767,-500.0,0.00010996,2]
[336026019,1724670650776,-500.0,0.00010996,2]
[336026020,1724670650785,-467.2,0.00010996,2]
[336026021,1724670650795,-500.0,0.00010996,2]
[336026022,1724670650804,-500.0,0.00010996,2]
[336026023,1724670650813,-500.0,0.00010996,2]
[336026024,1724670650823,-500.0,0.00010996,2]
[336026025,1724670650832,-500.0,0.00010996,2]
[336026026,1724670650842,-500.0,0.00010996,2]
[336026027,1724670650851,-500.0,0.00010996,2]
[336026028,1724670650861,-500.0,0.00010996,2]
[336026029,1724670650870,-500.0,0.00010996,2]
[336026030,1724670650879,-500.0,0.00010996,2]
[336026031,1724670650888,-500.0,0.00010996,2]
[336026032,1724670650897,-500.0,0.00010996,2]
[336026033,1724670650907,-500.0,0.00010996,2]
[336026034,1724670650916,-500.0,0.00010996,2]
[336026035,1724670650926,-500.0,0.00010996,2]
[336026036,1724670650936,-500.0,0.00010996,2]
[336026037,1724670650945,-500.0,0.00010996,2]
[336026038,1724670650954,-500.0,0.00010996,2]
[336026039,1724670650963,-500.0,0.00010996,2]
[336026040,1724670650973,-500.0,0.00010996,2]
[336026041,1724670650982,-505.67793497,0.00010996,2]
[336026042,1724670650991,-520.07457135,0.00010996,2]
[336026043,1724670651001,-500.0,0.00010996,2]
[336026044,1724670651010,-545.26772102,0.00010996,2]
[336026045,1724670651019,-500.0,0.00010996,2]
[336026046,1724670651029,-500.0,0.00010996,2]
[336026047,1724670651038,-512.25578333,0.00010996,2]
[336026048,1724670651048,-511.06,0.00010996,2]
[336026049,1724670651057,-500.0,0.00010996,2]
[336026050,1724670651067,-500.0,0.00010996,2]
[336026051,1724670651076,-500.0,0.00010996,2]